fUSD/lending_fUSD_20250211
["ID","MTS","AMOUNT","RATE_DAILY","PERIOD"]
[352695020,1739245850759,-1597.55,0.00011093,2]
[352695021,1739245850768,-2800.52,0.00011093,2]
[352695022,1739245850778,-289.812615,0.00011093,2]
[352695023,1739245850787,-1392.05,0.00011093,2]
[352695024,1739245850796,-1366.0,0.00011093,2]
[352695025,1739245850805,-581.34,0.00011093,2]
[352695026,1739245850814,-160.139948,0.00011093,2]
[352695027,1739245850823,-2894.23,0.00011093,2]
[352695028,1739245850833,-500.0,0.00011093,2]
[352695029,1739245850842,-2440.57,0.00011093,2]
[352695030,1739245850852,-2156.84,0.00011093,2]
[352695031,1739245850861,-1425.69,0.00011093,2]
[352695032,1739245850870,-926.35,0.00011093,2]
[352695033,1739245850880,-2153.51,0.00011093,2]
[352695034,1739245850890,-2778.66,0.00011093,2]
[352695035,1739245850899,-2703.96,0.00011093,2]
[352695036,1739245850910,-500.0,0.00011093,2]
[352695037,1739245850921,-1075.49,0.00011093,2]
[352695038,1739245850931,-4471.34,0.00011093,2]
[352695039,1739245850940,-289.812615,0.00011093,2]
[352695040,1739245850950,-1079.68,0.00011093,2]
[352695041,1739245850959,-500.0,0.00011093,2]
[352695042,1739245850969,-500.0,0.00011093,2]
[352695043,1739245850978,-1643.48,0.00011093,2]
[352695044,1739245850987,-1876.29,0.00011093,2]
[352695045,1739245850996,-159.752688,0.00011093,2]
[352695046,1739245851006,-2163.74,0.00011093,2]
[352695047,1739245851016,-500.0,0.00011093,2]
[352695048,1739245851027,-500.0,0.00011093,2]
[352695049,1739245851037,-1944.95,0.00011093,2]
[352695050,1739245851051,-2805.87,0.00011093,2]
[352695051,1739245851061,-1087.21,0.00011093,2]
[352695052,1739245851070,-2998.25,0.00011093,2]
[352695053,1739245851080,-550.94,0.00011094,2]
[352695054,1739245851091,-500.0,0.00011094,2]
[352695055,1739245851100,-1020.74,0.00011094,2]
[352695056,1739245851109,-558.05,0.00011094,2]
[352695057,1739245851119,-819.31,0.00011094,2]
[352695058,1739245851129,-500.0,0.00011094,2]
[352695059,1739245851138,-500.0,0.00011094,2]
[352695060,1739245851147,-419.44246343,0.00011094,2]
[352695061,1739245851157,-500.0,0.00011094,2]
[352695062,1739245851166,-500.0,0.00011094,2]
[352695063,1739245851176,-500.0,0.00011094,2]
[352695064,1739245851185,-500.0,0.00011094,2]
[352695065,1739245851195,-780.75,0.00011094,2]
[352695066,1739245851204,-500.0,0.00011094,2]
[352695067,1739245851213,-500.0,0.00011094,2]
[352695068,1739245851222,-510.24,0.00011094,2]
[352695069,1739245851232,-500.0,0.00011094,2]
[352695070,1739245851241,-976.29,0.00011094,2]
[352695071,1739245851250,-500.0,0.00011094,2]
[352695072,1739245851260,-848.74,0.00011094,2]
[352695073,1739245851270,-500.0,0.00011094,2]
[352695074,1739245851280,-739.1,0.00011094,2]
[352695075,1739245851289,-500.0,0.00011094,2]
[352695076,1739245851299,-699.77,0.00011094,2]
[352695077,1739245851308,-1060.23,0.00011094,2]
[352695078,1739245851318,-740.4,0.00011094,2]
[352695080,1739245851329,-500.0,0.00011094,2]
[352695081,1739245851339,-500.0,0.00011094,2]
[352695082,1739245851348,-872.48,0.00011094,2]
[352695083,1739245851358,-500.0,0.00011094,2]
[352695084,1739245851368,-500.0,0.00011094,2]
[352695085,1739245851377,-500.0,0.00011094,2]
[352695086,1739245851387,-671.05,0.00011094,2]
[352695087,1739245851397,-1907.18,0.00011094,2]
[352695088,1739245851406,-1292.4,0.00011094,2]
[352695089,1739245851416,-787.76,0.00011094,2]
[352695090,1739245851426,-879.92,0.00011094,2]
[352695091,1739245851436,-1234.5,0.00011094,2]
[352695092,1739245851445,-500.0,0.00011094,2]
[352695093,1739245851455,-3212.95,0.00011094,2]
[352695094,1739245851465,-602.73,0.00011094,2]
[352695095,1739245851475,-1087.57,0.00011094,2]
[352695096,1739245851484,-500.0,0.00011094,2]
[352695097,1739245851494,-602.47,0.00011094,2]
[352695098,1739245851503,-1459.19,0.00011094,2]
[352695099,1739245851513,-758.64,0.00011094,2]
[352695100,1739245851523,-1979.35,0.00011094,2]
[352695101,1739245851533,-1258.54,0.00011094,2]
[352695102,1739245851542,-1600.03,0.00011094,2]
[352695103,1739245851552,-500.0,0.00011094,2]
[352695104,1739245851561,-1048.21,0.00011094,2]
[352695105,1739245851572,-1900.71,0.00011094,2]
[352695106,1739245851581,-1106.54,0.00011094,2]
[352695107,1739245851591,-1633.08,0.00011094,2]
[352695108,1739245851600,-3459.28,0.00011094,2]
[352695109,1739245851609,-4619.44,0.00011094,2]
[352695110,1739245851618,-768.31,0.00011094,2]
[352695111,1739245851627,-802.67,0.00011094,2]
[352695112,1739245851636,-1472.85,0.00011094,2]
[352695113,1739245851646,-500.0,0.00011094,2]
[352695114,1739245851655,-1286.97,0.00011094,2]
[352695115,1739245851664,-618.58,0.00011094,2]
[352695116,1739245851674,-500.0,0.00011094,2]
[352695117,1739245851684,-1253.57,0.00011094,2]
[352695118,1739245851694,-2791.1,0.00011094,2]
[352695119,1739245851703,-916.99,0.00011094,2]
[352695120,1739245851712,-500.0,0.00011095,2]
[352695121,1739245851722,-511.89837074,0.00011095,2]
[352695122,1739245851731,-562.87,0.00011095,2]
[352695123,1739245851740,-500.0,0.00011095,2]
[352695124,1739245851750,-500.0,0.00011095,2]
[352695125,1739245851759,-500.0,0.00011095,2]
[352695126,1739245851769,-500.0,0.00011095,2]
[352695127,1739245851778,-500.0,0.00011095,2]
[352695128,1739245851787,-500.0,0.00011095,2]
[352695129,1739245851796,-500.0,0.00011095,2]
[352695130,1739245851805,-500.0,0.00011095,2]
[352695131,1739245851814,-578.02,0.00011095,2]
[352695132,1739245851824,-550.77,0.00011095,2]
[352695133,1739245851833,-500.0,0.00011095,2]
[352695134,1739245851842,-500.0,0.00011095,2]
[352695135,1739245851851,-528.28902977,0.00011095,2]
[352695136,1739245851860,-308.66868949,0.00011095,2]
[352695137,1739245851870,-500.0,0.00011095,2]
[352695138,1739245851879,-500.0,0.00011095,2]
[352695139,1739245851888,-500.0,0.00011095,2]
[352695140,1739245851897,-500.0,0.00011095,2]
[352695141,1739245851907,-500.0,0.00011095,2]
[352695142,1739245851916,-500.0,0.00011095,2]
[352695143,1739245851925,-500.0,0.00011095,2]
[352695144,1739245851935,-522.95341549,0.00011095,2]
[352695145,1739245851945,-500.0,0.00011095,2]
[352695146,1739245851954,-448.8946655,0.00011095,2]
[352695147,1739245851963,-158.53666612,0.00011095,2]
[352695148,1739245851973,-178.25475796,0.00011095,2]
[352695149,1739245851982,-500.0,0.00011095,2]
[352695150,1739245851992,-221.11238063,0.00011095,2]
[352695151,1739245852001,-500.0,0.00011095,2]
[352695152,1739245852011,-500.0,0.00011095,2]
[352695153,1739245852021,-500.0,0.00011095,2]
[352695154,1739245852030,-517.79290372,0.00011095,2]
[352695155,1739245852040,-551.25,0.00011095,2]
[352695156,1739245852053,-500.0,0.00011095,2]
[352695157,1739245852062,-500.0,0.00011095,2]
[352695158,1739245852071,-614.2,0.00011095,2]
[352695159,1739245852082,-500.0,0.00011095,2]
[352695160,1739245852091,-832.04,0.00011095,2]
[352695161,1739245852101,-628.46,0.00011095,2]
[352695162,1739245852111,-582.27786136,0.00011095,2]
[352695163,1739245852121,-500.0,0.00011095,2]
[352695164,1739245852131,-500.0,0.00011095,2]
[352695165,1739245852141,-500.0,0.00011095,2]
[352695166,1739245852151,-500.0,0.00011095,2]
[352695167,1739245852161,-500.0,0.00011095,2]
[352695168,1739245852170,-1230.14,0.00011095,2]
[352695169,1739245852180,-818.78,0.00011095,2]
[352695170,1739245852190,-685.41,0.00011095,2]
[352695171,1739245852377,-516.5,0.00011095,2]
[352695172,1739245852387,-500.0,0.00011095,2]
[352695173,1739245852397,-500.0,0.00011095,2]
[352695174,1739245852406,-851.32,0.00011095,2]
[352695175,1739245852416,-542.94264312,0.00011095,2]
[352695176,1739245852426,-500.0,0.00011095,2]
[352695177,1739245852436,-600.18,0.00011095,2]
[352695178,1739245852446,-439.34479873,0.00011095,2]
[352695179,1739245852455,-676.36,0.00011095,2]
[352695180,1739245852465,-757.3,0.00011095,2]
[352695181,1739245852474,-500.0,0.00011095,2]
[352695182,1739245852483,-500.0,0.00011095,2]
[352695183,1739245852493,-500.0,0.00011095,2]
[352695184,1739245852502,-500.0,0.00011095,2]
[352695185,1739245852512,-500.0,0.00011095,2]
[352695186,1739245852522,-500.0,0.00011095,2]
[352695187,1739245852531,-500.0,0.00011095,2]
[352695188,1739245852541,-1150.43,0.00011095,2]
[352695189,1739245852550,-500.0,0.00011095,2]
[352695190,1739245852560,-500.0,0.00011095,2]
[352695191,1739245852569,-229.93251561,0.00011095,2]
[352695192,1739245852579,-500.0,0.00011095,2]
[352695193,1739245852588,-500.0,0.00011095,2]
[352695194,1739245852598,-500.0,0.00011095,2]
[352695195,1739245852607,-500.0,0.00011095,2]
[352695196,1739245852617,-500.0,0.00011095,2]
[352695197,1739245852627,-1083.61,0.00011095,2]
[352695198,1739245852636,-500.0,0.00011095,2]
[352695199,1739245852646,-539.7,0.00011095,2]
[352695200,1739245852655,-500.0,0.00011095,2]
[352695201,1739245852665,-500.0,0.00011095,2]
[352695202,1739245852675,-1137.39,0.00011095,2]
[352695203,1739245852686,-549.33,0.00011095,2]
[352695204,1739245852695,-500.0,0.00011095,2]
[352695205,1739245852705,-500.0,0.00011095,2]
[352695206,1739245852715,-727.96,0.00011095,2]
[352695207,1739245852725,-670.01,0.00011095,2]
[352695208,1739245852734,-500.0,0.00011095,2]
[352695209,1739245852743,-1143.9,0.00011095,2]
[352695210,1739245852752,-772.08,0.00011095,2]
[352695211,1739245852762,-500.0,0.00011095,2]
[352695212,1739245852771,-418.90761545,0.00011095,2]
[352695213,1739245852780,-500.0,0.00011095,2]
[352695214,1739245852790,-509.32,0.00011095,2]
[352695215,1739245852799,-500.0,0.00011095,2]
[352695216,1739245852808,-500.0,0.00011095,2]
[352695217,1739245852818,-500.0,0.00011095,2]
[352695218,1739245852827,-500.0,0.00011095,2]
[352695219,1739245852837,-500.0,0.00011095,2]
[352695220,1739245852846,-500.0,0.00011095,2]
[352695221,1739245852855,-500.0,0.00011095,2]
[352695222,1739245852864,-500.0,0.00011095,2]
[352695223,1739245852874,-500.0,0.00011095,2]
[352695224,1739245852883,-500.0,0.00011095,2]
[352695225,1739245852893,-580.48,0.00011095,2]
[352695226,1739245852902,-500.0,0.00011095,2]
[352695227,1739245852911,-500.0,0.00011095,2]
[352695228,1739245852920,-500.0,0.00011095,2]
[352695229,1739245852929,-576.49,0.00011095,2]
[352695230,1739245852939,-500.0,0.00011095,2]
[352695231,1739245852949,-431.53546984,0.00011095,2]
[352695232,1739245852958,-500.0,0.00011095,2]
[352695233,1739245852968,-230.1352589,0.00011095,2]
[352695234,1739245852977,-603.83,0.00011095,2]
[352695235,1739245852986,-500.0,0.00011095,2]
[352695236,1739245852995,-500.0,0.00011095,2]
[352695237,1739245853005,-500.0,0.00011095,2]
[352695238,1739245853014,-500.0,0.00011095,2]
[352695239,1739245853024,-792.44,0.00011095,2]
[352695240,1739245853033,-500.0,0.00011095,2]
[352695241,1739245853044,-635.94,0.00011095,2]
[352695242,1739245853055,-500.0,0.00011095,2]
[352695243,1739245853064,-500.0,0.00011095,2]
[352695244,1739245853073,-500.0,0.00011095,2]
[352695245,1739245853083,-504.38,0.00011095,2]
[352695246,1739245853092,-1142.72,0.00011095,2]
[352695247,1739245853103,-500.0,0.00011095,2]
[352695248,1739245853113,-1569.9,0.00011095,2]
[352695249,1739245853123,-500.0,0.00011095,2]
[352695250,1739245853132,-1748.1,0.00011095,2]
[352695251,1739245853141,-500.0,0.00011095,2]
[352695252,1739245853151,-500.0,0.00011095,2]
[352695253,1739245853160,-800.87,0.00011095,2]
[352695254,1739245853169,-1000.0,0.00011095,2]
[352695255,1739245853178,-1180.69,0.00011095,2]
[352695256,1739245853188,-500.0,0.00011095,2]
[352695257,1739245853197,-500.0,0.00011095,2]
[352695258,1739245853207,-500.0,0.00011095,2]
[352695259,1739245853217,-500.0,0.00011095,2]
[352695260,1739245853227,-941.42,0.00011095,2]
[352695261,1739245853236,-1705.11,0.00011095,2]
[352695262,1739245853245,-516.28649566,0.00011095,2]
[352695263,1739245853255,-938.36,0.00011095,2]
[352695264,1739245853264,-500.0,0.00011095,2]
[352695265,1739245853273,-2068.06,0.00011095,2]
[352695266,1739245853282,-500.0,0.00011095,2]
[352695267,1739245853291,-500.0,0.00011095,2]
[352695268,1739245853300,-500.0,0.00011095,2]
[352695269,1739245853309,-511.06772701,0.00011095,2]
[352695270,1739245853319,-500.0,0.00011095,2]
[352695271,1739245853328,-500.0,0.00011095,2]
[352695272,1739245853337,-500.0,0.00011095,2]
[352695273,1739245853346,-500.0,0.00011095,2]
[352695274,1739245853355,-512.10094718,0.00011095,2]
[352695275,1739245853365,-500.0,0.00011095,2]
[352695276,1739245853374,-500.0,0.00011095,2]
[352695277,1739245853383,-500.0,0.00011095,2]
[352695278,1739245853392,-588.8,0.00011095,2]
[352695279,1739245853401,-903.37,0.00011095,2]
[352695280,1739245853411,-500.0,0.00011095,2]
[352695281,1739245853420,-500.0,0.00011095,2]
[352695282,1739245853429,-500.0,0.00011095,2]
[352695283,1739245853439,-529.88,0.00011095,2]
[352695284,1739245853448,-817.74,0.00011095,2]
[352695285,1739245853457,-500.0,0.00011095,2]
[352695286,1739245853467,-150.0,0.00011151,2]
[352695287,1739245853476,-1979.99,0.00011151,2]
[352695288,1739245853485,-381.73184239,0.00011178,2]
[352695289,1739245853494,-1020.6,0.00011209,2]
[352695290,1739245853503,-500.0,0.00011229,2]
[352695291,1739245853513,-599.69133801,0.00011229,2]
[352695292,1739245853523,-519.48,0.00011229,2]
[352695293,1739245853532,-500.0,0.00011229,2]
[352695294,1739245853541,-547.00867477,0.00011229,2]
[352695295,1739245853550,-500.0,0.00011229,2]
[352695296,1739245853559,-500.0,0.00011229,2]
[352695297,1739245853568,-500.0,0.00011229,2]
[352695298,1739245853577,-500.0,0.00011229,2]
[352695299,1739245853587,-500.0,0.00011229,2]
[352695300,1739245853596,-500.0,0.00011229,2]
[352695301,1739245853605,-500.0,0.00011229,2]
[352695302,1739245853614,-500.0,0.00011229,2]
[352695303,1739245853623,-264.69190377,0.00011229,2]
[352695304,1739245853632,-500.0,0.00011229,2]
[352695305,1739245853641,-500.0,0.00011229,2]
[352695306,1739245853650,-500.0,0.00011229,2]
[352695307,1739245853659,-500.0,0.00011229,2]
[352695308,1739245853669,-302.41950984,0.00011229,2]
[352695309,1739245853678,-500.0,0.00011229,2]
[352695310,1739245853688,-500.0,0.00011229,2]
[352695311,1739245853698,-500.0,0.00011229,2]
[352695312,1739245853707,-267.30167397,0.00011229,2]
[352695313,1739245853716,-500.0,0.00011229,2]
[352695314,1739245853726,-1547.52,0.00011229,2]
[352695315,1739245853735,-500.0,0.00011229,2]
[352695316,1739245853744,-737.78,0.00011229,2]
[352695317,1739245853754,-500.0,0.00011229,2]
[352695318,1739245853763,-500.0,0.00011229,2]
[352695319,1739245853773,-1012.71,0.00011229,2]
[352695320,1739245853782,-2786.06,0.00011229,2]
[352695321,1739245853792,-1130.38,0.00011229,2]
[352695322,1739245853802,-500.0,0.00011229,2]
[352695323,1739245853811,-2222.53,0.00011229,2]
[352695324,1739245853820,-1984.62,0.00011229,2]
[352695325,1739245853830,-500.0,0.00011229,2]
[352695326,1739245853839,-500.0,0.00011229,2]
[352695327,1739245853848,-2024.53,0.00011229,2]
[352695328,1739245853858,-2056.09,0.00011229,2]
[352695329,1739245853867,-500.0,0.00011229,2]
[352695330,1739245853876,-332.25181456,0.00011229,2]
[352695331,1739245853886,-500.0,0.00011229,2]
[352695332,1739245853895,-866.9,0.00011229,2]
[352695333,1739245853905,-1674.25,0.00011229,2]
[352695334,1739245853914,-500.0,0.00011229,2]
[352695335,1739245853924,-1895.34,0.00011229,2]
[352695336,1739245853934,-3023.66,0.00011229,2]
[352695337,1739245853943,-500.0,0.00011229,2]
[352695338,1739245853953,-510.35828515,0.00011229,2]
[352695339,1739245853962,-571.34,0.00011229,2]
[352695340,1739245853971,-3081.09,0.00011229,2]
[352695341,1739245853981,-2105.16,0.00011229,2]
[352695342,1739245853990,-507.00033245,0.00011229,2]
[352695343,1739245854000,-1436.97,0.00011229,2]
[352695344,1739245854009,-500.0,0.00011229,2]
[352695345,1739245854018,-1437.61,0.00011229,2]
[352695346,1739245854028,-1495.22,0.00011229,2]
[352695347,1739245854037,-1018.75,0.00011229,2]
[352695348,1739245854052,-3691.01,0.00011229,2]
[352695349,1739245854061,-1081.48,0.00011229,2]
[352695350,1739245854070,-641.29,0.00011229,2]
[352695351,1739245854080,-1099.15,0.00011229,2]
[352695352,1739245854090,-1598.87,0.00011229,2]
[352695353,1739245854100,-500.0,0.00011229,2]
[352695354,1739245854109,-500.0,0.0001123,2]
[352695355,1739245854120,-832.3,0.0001123,2]
[352695356,1739245854130,-231.80794827,0.0001123,2]
[352695357,1739245854139,-936.583017,0.0001123,2]
[352695358,1739245854149,-859.17,0.0001123,2]
[352695359,1739245854158,-500.0,0.0001123,2]
[352695360,1739245854167,-893.96,0.0001123,2]
[352695361,1739245854177,-858.765114,0.0001123,2]
[352695362,1739245854187,-500.0,0.0001123,2]
[352695363,1739245854196,-500.0,0.0001123,2]
[352695364,1739245854206,-500.0,0.0001123,2]
[352695365,1739245854216,-889.03,0.0001123,2]
[352695366,1739245854226,-1075.3,0.0001123,2]
[352695367,1739245854235,-500.0,0.0001123,2]
[352695368,1739245854245,-745.74,0.0001123,2]
[352695369,1739245854255,-899.53,0.0001123,2]
[352695370,1739245854265,-680.2,0.0001123,2]
[352695371,1739245854274,-500.0,0.0001123,2]
[352695372,1739245854284,-1981.69,0.0001123,2]
[352695373,1739245854293,-2047.72,0.0001123,2]
[352695374,1739245854303,-1050.54,0.0001123,2]
[352695375,1739245854312,-1173.41865379,0.0001123,2]
[352695381,1739246375842,221.41,8.232e-05,2]
[352695382,1739246375863,36.2,8.232e-05,2]
[352695383,1739246468413,363.8,8.219e-05,2]
[352695393,1739247032442,-98.17,8.219e-05,2]
[352695394,1739247032453,-150.0,8.339e-05,2]
[352695395,1739247032463,-150.0,8.604e-05,2]
[352695396,1739247032473,-150.0,8.835e-05,2]
[352695397,1739247032483,-300.0,8.835e-05,2]
[352695398,1739247032494,-1736.2736,8.836e-05,2]
[352695399,1739247032504,-21665.0008,8.836e-05,2]
[352695400,1739247032514,-610.4231,8.836e-05,2]
[352695401,1739247032524,-663.1298011,8.972e-05,2]
[352695402,1739247032533,-18253.9459,8.973e-05,2]
[352695403,1739247032543,-5000.0,8.973e-05,2]
[352695404,1739247032553,-150.0,9.041e-05,2]
[352695405,1739247032563,-250.0,9.601e-05,2]
[352695406,1739247032572,-522.6,9.656e-05,2]
[352695407,1739247032582,-255.0,9.718e-05,2]
[352695408,1739247032592,-420.0,9.718e-05,2]
[352695409,1739247032601,-1000.0,9.761e-05,2]
[352695410,1739247032610,-364.04,9.831e-05,2]
[352695411,1739247032620,-500.0,9.87e-05,2]
[352695412,1739247032630,-166.23,9.982e-05,2]
[352695413,1739247032639,-500.0,0.00010099,2]
[352695414,1739247032649,-165.23,0.00010111,2]
[352695415,1739247032659,-235.98,0.00010137,2]
[352695416,1739247032669,-461.97,0.00010474,2]
[352695417,1739247032678,-250.0,0.0001049,2]
[352695418,1739247032688,-200.0,0.000107,3]
[352695419,1739247032698,-500.0,0.000108,3]
[352695420,1739247032709,-300.51,0.00010836,2]
[352695421,1739247032719,-800.0,0.000109,3]
[352695422,1739247032728,-150.0,0.00010959,2]
[352695423,1739247032739,-539.0,0.00010962,2]
[352695424,1739247032748,-230.05,0.00010962,2]
[352695425,1739247032758,-3914.0,0.00010962,2]
[352695426,1739247032767,-150.0,0.00010962,2]
[352695427,1739247032776,-1109.0,0.00010962,2]
[352695428,1739247032786,-1000.0,0.00010981,2]
[352695429,1739247032796,-364.04,0.0001106,2]
[352695430,1739247032805,-697.14,0.0001109,2]
[352695431,1739247032815,-1511.03,0.0001109,2]
[352695432,1739247032824,-500.0,0.0001109,2]
[352695433,1739247032834,-1074.15,0.0001109,2]
[352695434,1739247032843,-1121.5,0.0001109,2]
[352695435,1739247032853,-1944.24,0.0001109,2]
[352695436,1739247032862,-2183.15,0.0001109,2]
[352695437,1739247032872,-1961.95,0.0001109,2]
[352695438,1739247032881,-500.0,0.0001109,2]
[352695439,1739247032890,-2016.04,0.0001109,2]
[352695440,1739247032899,-1652.53,0.0001109,2]
[352695441,1739247032908,-815.49,0.0001109,2]
[352695442,1739247032918,-2896.69,0.0001109,2]
[352695443,1739247032927,-1843.54,0.0001109,2]
[352695444,1739247032936,-2033.9,0.0001109,2]
[352695445,1739247032954,-1400.55,0.0001109,2]
[352695446,1739247032964,-500.0,0.0001109,2]
[352695447,1739247032973,-1398.08,0.0001109,2]
[352695448,1739247032983,-3498.31,0.0001109,2]
[352695449,1739247032992,-608.68,0.0001109,2]
[352695450,1739247033002,-1028.39,0.0001109,2]
[352695451,1739247033012,-1552.88,0.0001109,2]
[352695452,1739247033022,-500.0,0.0001109,2]
[352695453,1739247033032,-706.27150271,0.0001109,2]
[352695454,1739247033059,-104.75849729,0.0001109,2]
[352695455,1739247033069,-1412.28,0.0001109,2]
[352695456,1739247033079,-623.51,0.0001109,2]
[352695457,1739247033088,-1033.03,0.0001109,2]
[352695458,1739247033098,-983.83,0.0001109,2]
[352695459,1739247033108,-2720.37,0.0001109,2]
[352695460,1739247033118,-500.0,0.00011091,2]
[352695461,1739247033128,-500.0,0.00011091,2]
[352695462,1739247033137,-500.0,0.00011091,2]
[352695463,1739247033147,-500.0,0.00011091,2]
[352695464,1739247033157,-500.0,0.00011091,2]
[352695465,1739247033167,-500.0,0.00011091,2]
[352695466,1739247033177,-975.52,0.00011091,2]
[352695467,1739247033186,-362.44006562,0.00011091,2]
[352695468,1739247033196,-500.0,0.00011091,2]
[352695469,1739247033208,-500.0,0.00011091,2]
[352695470,1739247033217,-616.66269224,0.00011091,2]
[352695471,1739247033227,-500.0,0.00011091,2]
[352695472,1739247033238,-500.0,0.00011091,2]
[352695473,1739247033248,-500.0,0.00011091,2]
[352695474,1739247033258,-407.09655308,0.00011091,2]
[352695475,1739247033268,-490.75461084,0.00011091,2]
[352695476,1739247033278,-652.98,0.00011091,2]
[352695477,1739247033288,-500.0,0.00011091,2]
[352695478,1739247033297,-291.17580919,0.00011091,2]
[352695479,1739247033307,-500.0,0.00011091,2]
[352695480,1739247033317,-500.0,0.00011091,2]
[352695481,1739247033326,-500.0,0.00011091,2]
[352695482,1739247033336,-500.0,0.00011091,2]
[352695483,1739247033346,-1151.21,0.00011091,2]
[352695484,1739247033356,-500.0,0.00011091,2]
[352695485,1739247033366,-500.0,0.00011091,2]
[352695486,1739247033376,-287.74954525,0.00011091,2]
[352695487,1739247033386,-500.0,0.00011091,2]
[352695488,1739247033396,-605.19,0.00011091,2]
[352695489,1739247033411,-500.0,0.00011091,2]
[352695490,1739247033420,-543.4458599,0.00011091,2]
[352695491,1739247033430,-500.0,0.00011091,2]
[352695492,1739247033440,-889.34,0.00011091,2]
[352695493,1739247033453,-500.0,0.00011091,2]
[352695494,1739247033463,-877.09,0.00011091,2]
[352695495,1739247033473,-500.0,0.00011091,2]
[352695496,1739247033484,-500.0,0.00011091,2]
[352695497,1739247033494,-500.0,0.00011091,2]
[352695498,1739247033504,-500.0,0.00011091,2]
[352695499,1739247033514,-500.0,0.00011091,2]
[352695500,1739247033524,-529.18945805,0.00011091,2]
[352695501,1739247033534,-500.0,0.00011091,2]
[352695502,1739247033543,-500.0,0.00011091,2]
[352695503,1739247033552,-500.0,0.00011091,2]
[352695504,1739247033562,-197.64417539,0.00011091,2]
[352695505,1739247033572,-530.10131596,0.00011091,2]
[352695506,1739247033582,-519.02099116,0.00011091,2]
[352695507,1739247033592,-502.01562712,0.00011091,2]
[352695508,1739247033602,-500.0,0.00011091,2]
[352695509,1739247033612,-858.368507,0.00011091,2]
[352695510,1739247033622,-774.5,0.00011091,2]
[352695511,1739247033632,-500.0,0.00011091,2]
[352695512,1739247033642,-500.0,0.00011091,2]
[352695513,1739247033652,-923.429928,0.00011091,2]
[352695514,1739247033662,-500.0,0.00011091,2]
[352695515,1739247033672,-500.0,0.00011091,2]
[352695516,1739247033682,-500.0,0.00011091,2]
[352695517,1739247033693,-500.0,0.00011091,2]
[352695518,1739247033704,-500.0,0.00011091,2]
[352695519,1739247033714,-954.24,0.00011091,2]
[352695520,1739247033724,-889.94,0.00011091,2]
[352695521,1739247033735,-500.0,0.00011091,2]
[352695522,1739247033744,-500.0,0.00011091,2]
[352695523,1739247033756,-500.0,0.00011091,2]
[352695524,1739247033766,-500.0,0.00011091,2]
[352695525,1739247033776,-500.0,0.00011091,2]
[352695526,1739247033786,-500.0,0.00011091,2]
[352695527,1739247033796,-507.48650431,0.00011091,2]
[352695528,1739247033806,-500.0,0.00011091,2]
[352695529,1739247033815,-500.0,0.00011091,2]
[352695530,1739247033825,-500.0,0.00011091,2]
[352695531,1739247033834,-500.0,0.00011091,2]
[352695532,1739247033844,-944.47,0.00011091,2]
[352695533,1739247033853,-500.0,0.00011091,2]
[352695534,1739247033862,-500.0,0.00011091,2]